[Event "105th British-ch 2018"]
[Site "Hull"]
[Date "2018.07.28"]
[Round "1"]
[White "Webb, Laurence E"]
[Black "Burke, Mitchell R"]
[Result "1-0"]
[ECO "E91"]
[WhiteElo "2306"]
[BlackElo "1988"]
[Annotator "NA"]
[PlyCount "53"]
[EventDate "2018.07.28"]
[EventType "swiss"]
[EventCountry "GBR"]
[SourceTitle "playchess.com"]
[Source "ChessBase"]
[SourceQuality "1"]
[TimeControl "40/5400+30:1800+30"]

1. d4 {[%emt 0:02:03]} Nf6 {[%emt 0:00:53]} 2. c4 {[%emt 0:00:15]} g6 {[%emt 0:04:19]} 3. Nc3 {[%emt 0:02:41]} Bg7 {[%emt 0:00:31]} 4. e4 {[%emt 0:00:28]} d6 {[%emt 0:00:28]} 5. Nf3 {[%emt 0:00:07]} O-O {[%emt 0:02:00]} 6. Be2 {[%emt 0:00:05]} a6 {[%emt 0:09:11]} 7. O-O {[%emt 0:02:38]} Bg4 {[%emt 0:13:11]} 8. Be3 {[%emt 0:02:58]} Nfd7 {[%emt 0:02:10]} 9. Ne1 {[%emt 0:06:36]} Bxe2 {[%emt 0:02:54]} 10. Qxe2 {[%emt 0:00:04]} c5 {[%emt 0:02:19]} 11. d5 {[%emt 0:01:12]} b5 {[%emt 0:09:29]} 12. cxb5 {[%emt 0:03:46]} Qa5 {[%emt 0:09:16]} 13. Bd2 {[%emt 0:05:20]} axb5 {[%emt 0:06:04]} 14. Nxb5 {[%emt 0:01:41]} Qb6 {[%emt 0:07:35]} 15. Bc3 {[%emt 0:02:10]} Na6 {[%emt 0:05:28]} 16. Nc2 {[%emt 0:02:49]} Rfb8 {[%emt 0:05:22]} 17. a4 {[%emt 0:01:12]} Nc7 {[%emt 0:02:15]} 18. Nxc7 {[%emt 0:03:24]} Qxc7 {[%emt 0:00:20]} 19. Ne3 {[%emt 0:02:47]} Rb3 {[%emt 0:02:12]} 20. Qc2 {[%emt 0:03:52]} Rab8 {[%emt 0:02:12]} 21. Nc4 {[%emt 0:00:40]} Bxc3 {[%emt 0:05:03]} 22. bxc3 {[%emt 0:00:19]} Qb7 {[%emt 0:01:13]} 23. Na5 {[%emt 0:05:05]} Rb2 {[%emt 0:00:06]} 24. Qc1 {[%emt 0:00:07]} Qa6 {[%emt 0:04:25]} 25. Nc6 {[%emt 0:00:46]} R8b3 {[%emt 0:00:18]} 26. Nxe7+ {[%emt 0:00:41]} Kh8 {[%emt 0:00:31]} 27. Qf4 {[%emt 0:02:47]} 1-0

[Event "105th British-ch 2018"]
[Site "Hull"]
[Date "2018.07.28"]
[Round "1"]
[White "Muir, Andrew J"]
[Black "De Coverly, Roger D"]
[Result "1-0"]
[ECO "A65"]
[WhiteElo "2291"]
[BlackElo "1920"]
[Annotator "NA"]
[PlyCount "95"]
[EventDate "2018.07.28"]
[EventType "swiss"]
[EventCountry "GBR"]
[SourceTitle "playchess.com"]
[Source "ChessBase"]
[SourceQuality "1"]
[TimeControl "40/5400+30:1800+30"]

1. d4 {[%emt 0:00:09]} Nf6 {[%emt 0:00:06]} 2. c4 {[%emt 0:00:27]} g6 {[%emt 0:00:05]} 3. Nc3 {[%emt 0:00:13]} Bg7 {[%emt 0:00:05]} 4. e4 {[%emt 0:00:19]} d6 {[%emt 0:00:05]} 5. Nge2 {[%emt 0:00:37]} O-O {[%emt 0:00:39]} 6. Ng3 {[%emt 0:00:34]} c5 {[%emt 0:01:04]} 7. d5 {[%emt 0:00:30]} e6 {[%emt 0:01:32]} 8. Be2 {[%emt 0:00:58]} exd5 {[%emt 0:01:12]} 9. cxd5 {[%emt 0:00:29]} Nbd7 {[%emt 0:04:00]} 10. O-O {[%emt 0:00:42]} a6 {[%emt 0:01:04]} 11. a4 {[%emt 0:00:40]} b6 {[%emt 0:01:20]} 12. Bg5 {[%emt 0:03:22]} h6 {[%emt 0:01:31]} 13. Be3 {[%emt 0:00:47]} Ne5 {[%emt 0:02:24]} 14. h3 {[%emt 0:01:54]} h5 {[%emt 0:01:31]} 15. Bg5 {[%emt 0:04:30]} Re8 {[%emt 0:03:12]} 16. Qd2 {[%emt 0:02:04]} Bb7 {[%emt 0:04:15]} 17. Rad1 {[%emt 0:11:52]} Qc7 {[%emt 0:04:32]} 18. Kh1 {[%emt 0:07:33]} Nh7 {[%emt 0:02:50]} 19. Bh4 {[%emt 0:00:43]} f6 {[%emt 0:05:02]} 20. f4 {[%emt 0:08:29]} Nf7 {[%emt 0:02:09]} 21. Kh2 {[%emt 0:07:34]} Rf8 {[%emt 0:02:16]} 22. Nh1 {[%emt 0:00:51]} Rae8 {[%emt 0:08:59]} 23. Bg3 {[%emt 0:02:03]} Bc8 {[%emt 0:01:54]} 24. Nf2 {[%emt 0:03:57]} Bh6 {[%emt 0:07:27]} 25. Kh1 {[%emt 0:01:57]} Qb7 {[%emt 0:03:44]} 26. Qd3 {[%emt 0:07:40]} Bg7 {[%emt 0:06:08]} 27. f5 {[%emt 0:02:56]} gxf5 {[%emt 0:07:57]} 28. Bxh5 {[%emt 0:05:34]} Ne5 {[%emt 0:01:40]} 29. Bxe5 {[%emt 0:06:25]} Rxe5 {[%emt 0:00:28]} 30. Bg6 {[%emt 0:00:05]} Ng5 {[%emt 0:05:29]} 31. exf5 {[%emt 0:00:49]} Bd7 {[%emt 0:03:47]} 32. Ng4 {[%emt 0:01:32]} Re7 {[%emt 0:00:57]} 33. Qg3 {[%emt 0:02:51]} Qb8 {[%emt 0:03:02]} 34. Rfe1 {[%emt 0:01:36]} Rxe1+ {[%emt 0:02:07]} 35. Rxe1 {[%emt 0:00:05]} Be8 {[%emt 0:01:59]} 36. h4 {[%emt 0:03:29]} Nf7 {[%emt 0:03:33]} 37. Bxf7+ {[%emt 0:04:33]} Bxf7 {[%emt 0:00:26]} 38. Nh6+ {[%emt 0:01:54]} Kh8 {[%emt 0:00:30]} 39. Nxf7+ {[%emt 0:00:05]} Rxf7 {[%emt 0:00:08]} 40. Re6 {[%emt 0:00:20]} c4 {[%emt 0:05:03]} 41. Qxd6 {[%emt 0:00:33]} Qxd6 {[%emt 0:00:39]} 42. Rxd6 {[%emt 0:00:04]} Rb7 {[%emt 0:00:20]} 43. Rd8+ {[%emt 0:01:18]} Kh7 {[%emt 0:00:07]} 44. d6 {[%emt 0:00:24]} b5 {[%emt 0:01:45]} 45. d7 {[%emt 0:09:05]} b4 {[%emt 0:01:19]} 46. Rh8+ {[%emt 0:03:30]} Bxh8 {[%emt 0:00:06]} 47. d8=Q {[%emt 0:00:08]} bxc3 {[%emt 0:00:24]} 48. bxc3 {[%emt 0:00:20]} 1-0

[Event "105th British-ch 2018"]
[Site "Hull"]
[Date "2018.07.28"]
[Round "1"]
[White "Toma, Katarzyna"]
[Black "Hawkins, Jonathan"]
[Result "0-1"]
[ECO "B12"]
[WhiteElo "2274"]
[BlackElo "2590"]
[Annotator "ChessBase"]
[PlyCount "50"]
[EventDate "2018.07.28"]
[EventType "swiss"]
[EventCountry "GBR"]
[SourceTitle "playchess.com"]
[Source "ChessBase"]
[SourceQuality "1"]
[TimeControl "40/5400+30:1800+30"]

1. e4 {[%emt 0:00:00]} c6 {[%emt 0:04:31]} 2. d4 {[%emt 0:00:00]} d5 {[%emt 0:00:10]} 3. e5 {[%emt 0:00:00]} c5 {[%emt 0:00:06]} 4. dxc5 {[%emt 0:00:03]} Nc6 {[%emt 0:00:06]} 5. a3 {[%emt 0:00:18]} Nxe5 {[%emt 0:02:04]} 6. b4 {[%emt 0:00:42]} g6 {[%emt 0:00:33]} 7. Bb5+ {[%emt 0:01:08]} Nc6 {[%emt 0:01:51]} 8. Bb2 {[%emt 0:00:19]} Nf6 {[%emt 0:00:08]} 9. c4 {[%emt 0:01:24]} Be6 {[%emt 0:00:51]} 10. Nf3 {[%emt 0:07:40]} Bg7 {[%emt 0:01:39]} 11. Nd4 {[%emt 0:16:10]} Bd7 {[%emt 0:04:14]} 12. O-O {[%emt 0:13:15]} O-O {[%emt 0:02:29]} 13. Re1 {[%emt 0:13:20]} a5 {[%emt 0:04:15]} 14. Bxc6 {[%emt 0:08:30]} bxc6 {[%emt 0:03:49]} 15. Nd2 {[%emt 0:00:39]} Qb8 {[%emt 0:04:27]} 16. Rxe7 {[%emt 0:06:23]} axb4 {[%emt 0:03:14]} 17. a4 {[%emt 0:00:36]} Re8 {[%emt 0:03:29]} 18. Rxe8+ {[%emt 0:02:29]} Qxe8 {[%emt 0:02:37]} 19. Qb3 {[%emt 0:00:18]} Ne4 {[%emt 0:00:51]} 20. Nxe4 {[%emt 0:07:45]} Qxe4 {[%emt 0:00:17]} 21. Nf3 {[%emt 0:01:26]} Qxc4 {[%emt 0:01:20]} 22. Qxc4 {[%emt 0:02:49]} dxc4 {[%emt 0:00:05]} 23. Bxg7 {[%emt 0:00:06]} Kxg7 {[%emt 0:00:04]} 24. Kf1 {[%emt 0:04:40]} b3 {[%emt 0:01:43]} 25. Ke2 {[%emt 0:02:37]} Bf5 {[%emt 0:01:07]} 0-1

[Event "105th British-ch 2018"]
[Site "Hull"]
[Date "2018.07.28"]
[Round "1"]
[White "McMichael, Richard J"]
[Black "Fodor, Tamas Jr"]
[Result "0-1"]
[ECO "A01"]
[WhiteElo "2245"]
[BlackElo "2506"]
[Annotator "ChessBase"]
[PlyCount "114"]
[EventDate "2018.07.28"]
[EventType "swiss"]
[EventCountry "GBR"]
[SourceTitle "playchess.com"]
[Source "ChessBase"]
[SourceQuality "1"]
[TimeControl "40/5400+30:1800+30"]

1. b3 {[%emt 0:00:01]} e5 {[%emt 0:00:15]} 2. Bb2 {[%emt 0:00:08]} Nc6 {[%emt 0:00:06]} 3. e3 {[%emt 0:00:11]} Nf6 {[%emt 0:00:06]} 4. Bb5 {[%emt 0:00:07]} Bd6 {[%emt 0:00:12]} 5. Na3 {[%emt 0:00:17]} Na5 {[%emt 0:03:46]} 6. Be2 {[%emt 0:00:50]} c6 {[%emt 0:02:17]} 7. c4 {[%emt 0:02:08]} O-O {[%emt 0:03:08]} 8. Nc2 {[%emt 0:02:38]} c5 {[%emt 0:02:57]} 9. d3 {[%emt 0:00:53]} Nc6 {[%emt 0:00:38]} 10. Nf3 {[%emt 0:00:25]} Bc7 {[%emt 0:01:38]} 11. e4 {[%emt 0:04:26]} a6 {[%emt 0:04:15]} 12. O-O {[%emt 0:00:44]} b5 {[%emt 0:00:14]} 13. Ne3 {[%emt 0:01:26]} b4 {[%emt 0:00:28]} 14. Qd2 {[%emt 0:02:03]} a5 {[%emt 0:00:38]} 15. Bd1 {[%emt 0:00:40]} d6 {[%emt 0:03:40]} 16. Ne1 {[%emt 0:04:14]} Nd4 {[%emt 0:03:18]} 17. f4 {[%emt 0:03:50]} Bd7 {[%emt 0:01:47]} 18. fxe5 {[%emt 0:07:35]} dxe5 {[%emt 0:00:14]} 19. Nf3 {[%emt 0:03:55]} a4 {[%emt 0:05:22]} 20. bxa4 {[%emt 0:03:18]} Bxa4 {[%emt 0:01:06]} 21. Nxd4 {[%emt 0:00:55]} exd4 {[%emt 0:00:48]} 22. Nf5 {[%emt 0:00:33]} g6 {[%emt 0:07:55]} 23. Nh6+ {[%emt 0:07:32]} Kg7 {[%emt 0:01:21]} 24. Be2 {[%emt 0:05:19]} Nd7 {[%emt 0:03:31]} 25. g3 {[%emt 0:02:20]} Bc6 {[%emt 0:03:30]} 26. Rf2 {[%emt 0:01:28]} f6 {[%emt 0:02:07]} 27. Bc1 {[%emt 0:05:39]} Qe7 {[%emt 0:00:53]} 28. Ng4 {[%emt 0:02:46]} Kh8 {[%emt 0:01:28]} 29. Nh6 {[%emt 0:04:19]} Ra6 {[%emt 0:03:42]} 30. Bd1 {[%emt 0:00:56]} Bb7 {[%emt 0:05:04]} 31. Bb2 {[%emt 0:03:29]} Rfa8 {[%emt 0:11:04]} 32. Bb3 {[%emt 0:01:02]} Ne5 {[%emt 0:00:28]} 33. Raf1 {[%emt 0:01:26]} Bc8 {[%emt 0:00:21]} 34. h4 {[%emt 0:07:55]} Bh3 {[%emt 0:03:32]} 35. Re1 {[%emt 0:00:18]} Bd7 {[%emt 0:00:31]} 36. Bc1 {[%emt 0:02:42]} Kg7 {[%emt 0:02:02]} 37. Qe2 {[%emt 0:02:02]} R8a7 {[%emt 0:07:23]} 38. Kg2 {[%emt 0:06:36]} Qe6 {[%emt 0:02:59]} 39. Rh1 {[%emt 0:00:57]} Bc6 {[%emt 0:00:15]} 40. Re1 {[%emt 0:02:51]} Ba4 {[%emt 0:01:27]} 41. Ref1 {[%emt 0:03:32]} Bxb3 {[%emt 0:03:21]} 42. axb3 {[%emt 0:00:17]} Ra2 {[%emt 0:00:27]} 43. Bd2 {[%emt 0:01:05]} Bd8 {[%emt 0:01:34]} 44. h5 {[%emt 0:01:32]} Rb2 {[%emt 0:04:20]} 45. hxg6 {[%emt 0:00:41]} hxg6 {[%emt 0:00:08]} 46. Rh1 {[%emt 0:01:49]} Raa2 {[%emt 0:00:31]} 47. Nf5+ {[%emt 0:00:41]} Kg8 {[%emt 0:00:38]} 48. Nh6+ {[%emt 0:00:55]} Kf8 {[%emt 0:00:57]} 49. Rd1 {[%emt 0:00:27]} Ke8 {[%emt 0:02:01]} 50. Qf1 {[%emt 0:00:40]} Rxb3 {[%emt 0:00:08]} 51. Bf4 {[%emt 0:01:24]} Rxf2+ {[%emt 0:00:53]} 52. Kxf2 {[%emt 0:00:08]} Rb2+ {[%emt 0:00:50]} 53. Kg1 {[%emt 0:00:26]} Ra2 {[%emt 0:01:00]} 54. Rd2 {[%emt 0:01:20]} Rxd2 {[%emt 0:00:45]} 55. Bxd2 {[%emt 0:00:04]} b3 {[%emt 0:00:11]} 56. Kg2 {[%emt 0:00:18]} Nxc4 {[%emt 0:00:26]} 57. dxc4 {[%emt 0:00:21]} Qxe4+ {[%emt 0:00:05]} 0-1

[Event "105th British-ch 2018"]
[Site "Hull"]
[Date "2018.07.28"]
[Round "1"]
[White "Wall, Tim P"]
[Black "Adair, James R"]
[Result "0-1"]
[ECO "B21"]
[WhiteElo "2234"]
[BlackElo "2492"]
[Annotator "ChessBase"]
[PlyCount "48"]
[EventDate "2018.07.28"]
[EventType "swiss"]
[EventCountry "GBR"]
[SourceTitle "playchess.com"]
[Source "ChessBase"]
[SourceQuality "1"]
[TimeControl "40/5400+30:1800+30"]

1. e4 {[%emt 0:00:02]} c5 {[%emt 0:00:14]} 2. d4 {[%emt 0:00:09]} cxd4 {[%emt 0:00:06]} 3. c3 {[%emt 0:00:09]} dxc3 {[%emt 0:00:17]} 4. Nxc3 {[%emt 0:00:09]} Nc6 {[%emt 0:00:17]} 5. Nf3 {[%emt 0:00:12]} e6 {[%emt 0:00:20]} 6. Bc4 {[%emt 0:00:11]} a6 {[%emt 0:00:13]} 7. O-O {[%emt 0:00:34]} b5 {[%emt 0:00:11]} 8. Bb3 {[%emt 0:00:36]} Bb7 {[%emt 0:00:28]} 9. Re1 {[%emt 0:03:35]} Bc5 {[%emt 0:01:22]} 10. Bg5 {[%emt 0:01:45]} Be7 {[%emt 0:21:32]} 11. Bf4 {[%emt 0:06:04]} Na5 {[%emt 0:00:16]} 12. Bd5 {[%emt 0:20:47]} exd5 {[%emt 0:21:24]} 13. exd5 {[%emt 0:00:27]} Kf8 {[%emt 0:02:35]} 14. d6 {[%emt 0:11:48]} Bf6 {[%emt 0:02:51]} 15. Nd5 {[%emt 0:06:17]} Bxd5 {[%emt 0:08:20]} 16. Qxd5 {[%emt 0:00:16]} Nc6 {[%emt 0:05:26]} 17. Re2 {[%emt 0:14:44]} g6 {[%emt 0:01:17]} 18. Rae1 {[%emt 0:01:33]} h5 {[%emt 0:05:38]} 19. Ng5 {[%emt 0:15:15]} Bxg5 {[%emt 0:02:31]} 20. Bxg5 {[%emt 0:00:09]} f6 {[%emt 0:00:54]} 21. Re7 {[%emt 0:10:25]} Ngxe7 {[%emt 0:03:55]} 22. dxe7+ {[%emt 0:00:11]} Nxe7 {[%emt 0:00:37]} 23. Qd6 {[%emt 0:00:18]} Rh7 {[%emt 0:02:18]} 24. Bxf6 {[%emt 0:04:46]} Rc8 {[%emt 0:02:28]} 0-1

[Event "105th British-ch 2018"]
[Site "Hull"]
[Date "2018.07.28"]
[Round "1"]
[White "Tozer, Philip Aa"]
[Black "Tan, Justin Hy"]
[Result "0-1"]
[ECO "A37"]
[WhiteElo "2142"]
[BlackElo "2481"]
[Annotator "ChessBase"]
[PlyCount "74"]
[EventDate "2018.07.28"]
[EventType "swiss"]
[EventCountry "GBR"]
[SourceTitle "playchess.com"]
[Source "ChessBase"]
[SourceQuality "1"]
[TimeControl "40/5400+30:1800+30"]

1. c4 {[%emt 0:00:04]} c5 {[%emt 0:00:47]} 2. g3 {[%emt 0:00:05]} Nc6 {[%emt 0:00:23]} 3. Bg2 {[%emt 0:00:25]} g6 {[%emt 0:00:12]} 4. Nc3 {[%emt 0:00:49]} Bg7 {[%emt 0:00:09]} 5. Nf3 {[%emt 0:00:14]} d6 {[%emt 0:00:33]} 6. O-O {[%emt 0:00:53]} e6 {[%emt 0:01:40]} 7. d3 {[%emt 0:01:29]} Nge7 {[%emt 0:00:36]} 8. Bg5 {[%emt 0:01:06]} h6 {[%emt 0:01:06]} 9. Bd2 {[%emt 0:00:09]} b6 {[%emt 0:04:16]} 10. Qc1 {[%emt 0:03:00]} Bb7 {[%emt 0:00:21]} 11. a3 {[%emt 0:04:07]} Qd7 {[%emt 0:05:20]} 12. Rb1 {[%emt 0:11:03]} g5 {[%emt 0:05:15]} 13. b4 {[%emt 0:12:10]} Ng6 {[%emt 0:05:04]} 14. h3 {[%emt 0:09:35]} f5 {[%emt 0:06:02]} 15. e3 {[%emt 0:07:50]} Bf6 {[%emt 0:20:41]} 16. Qc2 {[%emt 0:05:39]} h5 {[%emt 0:01:27]} 17. Nh2 {[%emt 0:05:22]} g4 {[%emt 0:10:27]} 18. h4 {[%emt 0:06:23]} Bxh4 {[%emt 0:08:49]} 19. gxh4 {[%emt 0:00:22]} Nxh4 {[%emt 0:00:02]} 20. Bxc6 {[%emt 0:07:19]} Bxc6 {[%emt 0:00:01]} 21. e4 {[%emt 0:01:16]} Qg7 {[%emt 0:05:08]} 22. Kh1 {[%emt 0:02:25]} O-O {[%emt 0:03:49]} 23. Qc1 {[%emt 0:02:59]} Kh7 {[%emt 0:00:57]} 24. Bg5 {[%emt 0:02:20]} Ng6 {[%emt 0:00:15]} 25. f4 {[%emt 0:02:42]} g3 {[%emt 0:03:30]} 26. Rg1 {[%emt 0:02:39]} gxh2 {[%emt 0:03:40]} 27. Kxh2 {[%emt 0:00:05]} Rh8 {[%emt 0:01:51]} 28. Rb2 {[%emt 0:02:55]} Qd4 {[%emt 0:02:18]} 29. Rbg2 {[%emt 0:02:05]} Raf8 {[%emt 0:08:23]} 30. Qd1 {[%emt 0:02:35]} Be8 {[%emt 0:00:11]} 31. Ne2 {[%emt 0:00:53]} Qg7 {[%emt 0:00:01]} 32. Ng3 {[%emt 0:00:39]} h4 {[%emt 0:00:55]} 33. Nh5 {[%emt 0:00:20]} Qd4 {[%emt 0:00:02]} 34. Be7 {[%emt 0:01:20]} Nxe7 {[%emt 0:00:34]} 35. Rg7+ {[%emt 0:00:06]} Kh6 {[%emt 0:00:00]} 36. Qe1 {[%emt 0:03:59]} Bxh5 {[%emt 0:01:22]} 37. Rxe7 {[%emt 0:00:47]} Qf6 {[%emt 0:00:20]} 0-1

[Event "105th British-ch 2018"]
[Site "Hull"]
[Date "2018.07.28"]
[Round "1"]
[White "Longson, Sarah N"]
[Black "Fernandez, Daniel Howard"]
[Result "0-1"]
[ECO "B06"]
[WhiteElo "2123"]
[BlackElo "2477"]
[Annotator "ChessBase"]
[PlyCount "78"]
[EventDate "2018.07.28"]
[EventType "swiss"]
[EventCountry "GBR"]
[SourceTitle "playchess.com"]
[Source "ChessBase"]
[SourceQuality "1"]
[TimeControl "40/5400+30:1800+30"]

1. e4 {[%emt 0:00:01]} g6 {[%emt 0:01:33]} 2. d4 {[%emt 0:00:18]} Bg7 {[%emt 0:00:02]} 3. Nf3 {[%emt 0:00:12]} d6 {[%emt 0:00:12]} 4. Bc4 {[%emt 0:00:27]} e6 {[%emt 0:03:03]} 5. Qe2 {[%emt 0:04:21]} Ne7 {[%emt 0:00:14]} 6. Bb3 {[%emt 0:01:15]} h6 {[%emt 0:02:18]} 7. c3 {[%emt 0:00:40]} b6 {[%emt 0:01:21]} 8. Nbd2 {[%emt 0:02:10]} Ba6 {[%emt 0:01:30]} 9. Bc4 {[%emt 0:03:44]} Bb7 {[%emt 0:04:30]} 10. O-O {[%emt 0:09:21]} a6 {[%emt 0:00:58]} 11. Bb3 {[%emt 0:08:52]} Nd7 {[%emt 0:00:28]} 12. Re1 {[%emt 0:02:56]} O-O {[%emt 0:01:51]} 13. Nf1 {[%emt 0:05:17]} c5 {[%emt 0:03:53]} 14. Ng3 {[%emt 0:02:20]} b5 {[%emt 0:07:03]} 15. Bf4 {[%emt 0:09:16]} cxd4 {[%emt 0:03:04]} 16. cxd4 {[%emt 0:00:37]} Qb6 {[%emt 0:01:13]} 17. Qd2 {[%emt 0:05:59]} Kh7 {[%emt 0:00:08]} 18. h4 {[%emt 0:02:09]} Nf6 {[%emt 0:01:27]} 19. Bc2 {[%emt 0:13:04]} Rac8 {[%emt 0:11:31]} 20. Bd3 {[%emt 0:01:26]} Ng4 {[%emt 0:04:33]} 21. a4 {[%emt 0:11:39]} e5 {[%emt 0:00:51]} 22. dxe5 {[%emt 0:02:00]} dxe5 {[%emt 0:00:02]} 23. Be3 {[%emt 0:00:50]} Nxe3 {[%emt 0:00:03]} 24. Qxe3 {[%emt 0:00:33]} Qxe3 {[%emt 0:00:03]} 25. Rxe3 {[%emt 0:00:19]} b4 {[%emt 0:00:02]} 26. h5 {[%emt 0:03:33]} Rfd8 {[%emt 0:00:14]} 27. Ne1 {[%emt 0:03:50]} Bf6 {[%emt 0:00:37]} 28. Rf3 {[%emt 0:01:23]} Kg7 {[%emt 0:00:13]} 29. hxg6 {[%emt 0:01:35]} fxg6 {[%emt 0:00:02]} 30. Nf1 {[%emt 0:00:33]} Nc6 {[%emt 0:01:19]} 31. Ne3 {[%emt 0:01:12]} Nd4 {[%emt 0:00:10]} 32. Rg3 {[%emt 0:00:38]} Nb3 {[%emt 0:00:32]} 33. Rd1 {[%emt 0:00:37]} Bg5 {[%emt 0:01:01]} 34. N1c2 {[%emt 0:02:02]} a5 {[%emt 0:01:04]} 35. f3 {[%emt 0:01:20]} Nd4 {[%emt 0:02:28]} 36. Kf1 {[%emt 0:01:39]} Nxc2 {[%emt 0:02:26]} 37. Nxc2 {[%emt 0:00:07]} Rxd3 {[%emt 0:02:04]} 38. Rxd3 {[%emt 0:00:05]} Ba6 {[%emt 0:00:25]} 39. Ne1 {[%emt 0:00:37]} Bh4 {[%emt 0:00:30]} 0-1

[Event "105th British-ch 2018"]
[Site "Hull"]
[Date "2018.07.28"]
[Round "1"]
[White "Waddington, Mike P"]
[Black "Wells, Peter K"]
[Result "0-1"]
[ECO "B23"]
[WhiteElo "2110"]
[BlackElo "2426"]
[Annotator "NA"]
[PlyCount "88"]
[EventDate "2018.07.28"]
[EventType "swiss"]
[EventCountry "GBR"]
[SourceTitle "playchess.com"]
[Source "ChessBase"]
[SourceQuality "1"]
[TimeControl "40/5400+30:1800+30"]

1. Nc3 {[%emt 0:00:03]} c5 {[%emt 0:00:33]} 2. e4 {[%emt 0:00:10]} a6 {[%emt 0:01:27]} 3. a4 {[%emt 0:00:46]} Nc6 {[%emt 0:01:16]} 4. f4 {[%emt 0:01:29]} g6 {[%emt 0:06:46]} 5. Nf3 {[%emt 0:00:27]} Bg7 {[%emt 0:00:04]} 6. Bc4 {[%emt 0:00:27]} e6 {[%emt 0:00:57]} 7. O-O {[%emt 0:01:06]} Nge7 {[%emt 0:01:15]} 8. d3 {[%emt 0:19:02]} d5 {[%emt 0:09:02]} 9. Bb3 {[%emt 0:01:49]} O-O {[%emt 0:09:39]} 10. e5 {[%emt 0:17:36]} f6 {[%emt 0:06:19]} 11. exf6 {[%emt 0:11:07]} Bxf6 {[%emt 0:01:08]} 12. Ne2 {[%emt 0:01:33]} Bd7 {[%emt 0:11:53]} 13. c3 {[%emt 0:02:39]} b5 {[%emt 0:02:09]} 14. Ng3 {[%emt 0:02:57]} b4 {[%emt 0:09:00]} 15. d4 {[%emt 0:07:36]} bxc3 {[%emt 0:02:21]} 16. bxc3 {[%emt 0:00:18]} Qa5 {[%emt 0:00:32]} 17. Ra3 {[%emt 0:06:54]} cxd4 {[%emt 0:09:26]} 18. cxd4 {[%emt 0:00:39]} Qb4 {[%emt 0:00:05]} 19. Bb2 {[%emt 0:03:29]} Rab8 {[%emt 0:07:07]} 20. Rf2 {[%emt 0:05:20]} Rfc8 {[%emt 0:03:41]} 21. Ne5 {[%emt 0:01:44]} Nxe5 {[%emt 0:03:33]} 22. dxe5 {[%emt 0:01:30]} Bh4 {[%emt 0:02:48]} 23. Ba2 {[%emt 0:07:02]} Nf5 {[%emt 0:01:40]} 24. Bxd5 {[%emt 0:01:29]} exd5 {[%emt 0:06:55]} 25. Qxd5+ {[%emt 0:00:07]} Kf8 {[%emt 0:00:03]} 26. Qxd7 {[%emt 0:00:37]} Rd8 {[%emt 0:00:35]} 27. Qxh7 {[%emt 0:01:42]} Rd1+ {[%emt 0:02:24]} 28. Rf1 {[%emt 0:00:21]} Qc5+ {[%emt 0:01:11]} 29. Kh1 {[%emt 0:00:09]} Nxg3+ {[%emt 0:00:45]} 30. hxg3 {[%emt 0:00:10]} Rxf1+ {[%emt 0:00:05]} 31. Kh2 {[%emt 0:00:11]} Bxg3+ {[%emt 0:00:25]} 32. Kxg3 {[%emt 0:01:59]} Qf2+ {[%emt 0:00:05]} 33. Kh2 {[%emt 0:00:53]} Qg1+ {[%emt 0:00:19]} 34. Kg3 {[%emt 0:00:16]} Qf2+ {[%emt 0:00:04]} 35. Kh2 {[%emt 0:00:08]} Qxf4+ {[%emt 0:01:45]} 36. Rg3 {[%emt 0:00:17]} Rxb2 {[%emt 0:00:27]} 37. Qh8+ {[%emt 0:01:24]} Ke7 {[%emt 0:00:07]} 38. Qh7+ {[%emt 0:02:16]} Kd8 {[%emt 0:00:51]} 39. Qh8+ {[%emt 0:00:43]} Kc7 {[%emt 0:00:22]} 40. Qh7+ {[%emt 0:00:14]} Kb8 {[%emt 0:00:34]} 41. Qxg6 {[%emt 0:06:51]} Qxe5 {[%emt 0:02:28]} 42. Qg8+ {[%emt 0:07:42]} Ka7 {[%emt 0:02:47]} 43. Qh7+ {[%emt 0:00:32]} Rb7 {[%emt 0:00:24]} 44. Qd3 {[%emt 0:01:30]} Rg7 {[%emt 0:01:58]} 0-1